bitfinex-derivatives/quotes_BTCF0:USTF0_20241109
["timestamp","ask_amount","ask_price","bid_price","bid_amount"]
[1731162546494,0.07295569,76400.0,76397.0,0.10460039]
[1731162546697,0.065418,76397.0,76396.0,0.03918339]
[1731162546993,0.07295569,76398.0,76394.0,0.03918339]
[1731162547199,0.03433398,76401.0,76392.0,0.03918339]
[1731162547200,0.07295569,76395.0,76392.0,0.03918339]
[1731162547404,0.13837669,76393.0,76392.0,0.03918339]
[1731162547989,0.065422,76392.0,76391.0,0.03918339]
[1731162548389,0.065422,76392.0,76388.0,0.10460839]
[1731162548587,0.07295569,76389.0,76388.0,0.10460839]
[1731162548890,0.13838069,76389.0,76388.0,0.065425]
[1731162549085,0.13838069,76389.0,76388.0,0.10455738]
[1731162549493,0.13838069,76389.0,76388.0,0.03913238]
[1731162549992,0.065425,76388.0,76387.0,0.03913238]
[1731162550199,0.065425,76388.0,76385.0,0.426908]
[1731162550400,0.065425,76388.0,76385.0,0.426228]
[1731162551291,0.065425,76388.0,76387.0,0.03914996]
[1731162552498,0.065425,76388.0,76385.0,0.47928209]
[1731162552699,0.065425,76388.0,76385.0,0.47852209]
[1731162552903,0.07295569,76389.0,76385.0,0.41309409]
[1731162553198,0.13838069,76389.0,76385.0,0.41309409]
[1731162553602,0.065426,76388.0,76385.0,0.41309409]
[1731162554405,0.065426,76388.0,76386.0,0.05229409]
[1731162554705,0.065426,76388.0,76387.0,0.05229409]
[1731162554904,0.065426,76388.0,76386.0,0.05229409]
[1731162555402,0.065426,76388.0,76386.0,0.06540574]
[1731162556502,0.065426,76388.0,76387.0,0.06540574]
[1731162559108,0.065426,76388.0,76387.0,0.1452091]
[1731162560508,0.065426,76388.0,76387.0,0.06540574]
[1731162560814,0.065426,76388.0,76387.0,0.14520645]
[1731162561198,0.065426,76388.0,76387.0,0.06540574]
[1731162562805,0.065426,76388.0,76386.0,0.13083274]
[1731162563112,0.065426,76388.0,76387.0,0.06540574]
[1731162563313,0.065426,76388.0,76386.0,0.13083274]
[1731162566618,0.065426,76388.0,76387.0,0.14522271]
[1731162568201,0.07295569,76389.0,76388.0,0.065425]
[1731162568401,0.07295569,76389.0,76388.0,0.14526069]
[1731162570407,0.065423,76392.0,76388.0,0.065425]
[1731162570710,0.065423,76392.0,76388.0,0.13078727]
[1731162570905,0.065423,76392.0,76388.0,0.065425]
[1731162571106,0.065423,76392.0,76388.0,0.13078727]
[1731162571307,0.0061,76394.0,76390.0,0.065423]
[1731162571506,0.06542,76394.0,76390.0,0.065423]
[1731162572307,0.03404007,76395.0,76387.0,0.06536227]
[1731162572504,0.065423,76391.0,76387.0,0.06536227]
[1731162572814,0.065423,76391.0,76388.0,0.065425]
[1731162573008,0.06542,76394.0,76388.0,0.065425]
[1731162573209,0.06542,76394.0,76389.0,0.065424]
[1731162573905,0.4349957,76397.0,76388.0,0.06536227]
[1731162573906,0.07295569,76396.0,76388.0,0.06536227]
[1731162574112,0.07295569,76396.0,76392.0,0.065422]
[1731162574307,0.07295569,76396.0,76393.0,0.065421]
[1731162575906,0.07295569,76396.0,76393.0,0.426221]
[1731162576508,0.07295569,76396.0,76393.0,0.49158327]
[1731162576710,0.065414,76401.0,76393.0,0.42616227]
[1731162576913,0.065414,76401.0,76399.0,0.05234166]
[1731162577123,0.07295569,76400.0,76399.0,0.05234166]
[1731162577414,0.13837069,76400.0,76399.0,0.05234166]
[1731162577807,0.065416,76399.0,76398.0,0.05234166]
[1731162578013,0.065416,76399.0,76394.0,0.06536227]
[1731162578413,0.065416,76399.0,76397.0,0.06536227]
[1731162578919,0.065418,76397.0,76396.0,0.06536227]
[1731162579117,0.13837369,76397.0,76396.0,0.06536227]
[1731162579419,0.13837369,76397.0,76394.0,0.06536227]
[1731162585621,0.13837369,76397.0,76394.0,0.06542]
[1731162587126,0.13837369,76397.0,76394.0,0.13078227]
[1731162587711,0.13837369,76397.0,76394.0,0.06542]
[1731162592623,0.065421,76393.0,76392.0,0.36152]
[1731162592921,0.3608,76393.0,76387.0,0.13078827]
[1731162593123,0.13838069,76388.0,76387.0,0.13078827]
[1731162593315,0.13838069,76388.0,76387.0,0.065426]
[1731162598730,0.065425,76388.0,76387.0,0.065426]
[1731162599029,0.13838069,76388.0,76387.0,0.065426]
[1731162600126,0.065427,76386.0,76384.0,0.065429]
[1731162600331,0.0315,76391.0,76383.0,0.00076]
[1731162600332,0.14591138,76385.0,76383.0,0.00076]
[1731162600535,0.14591138,76385.0,76381.0,0.05231283]
[1731162600827,0.14591138,76385.0,76382.0,0.05231626]
[1731162601040,0.14591138,76383.0,76381.0,0.05231626]
[1731162601337,0.06543,76382.0,76381.0,0.05231626]
[1731162601537,0.06543,76382.0,76380.0,0.05231625]
[1731162601538,0.07295569,76382.0,76380.0,0.05231625]
[1731162601722,0.07295569,76381.0,76380.0,0.05231625]
[1731162601928,0.065432,76380.0,76379.0,0.05231625]
[1731162602138,0.16878769,76380.0,76379.0,0.05231625]
[1731162602628,0.16878769,76380.0,76379.0,0.03920166]
[1731162603939,0.065434,76378.0,76377.0,0.03920166]
[1731162605226,0.065435,76377.0,76376.0,0.4019657]
[1731162606038,0.065435,76377.0,76376.0,0.36276404]
[1731162606241,0.065435,76377.0,76376.0,0.4019657]
[1731162607129,0.065435,76377.0,76376.0,0.36276404]
[1731162607334,0.03410225,76383.0,76376.0,0.3608]
[1731162607633,0.0631,76392.0,76380.0,0.07295569]
[1731162607828,0.0631,76392.0,76385.0,0.07295569]
[1731162607829,0.0061,76390.0,76385.0,0.07295569]
[1731162608027,0.157462,76392.0,76388.0,0.065425]
[1731162608238,0.09204,76392.0,76385.0,0.07295569]
[1731162608435,0.065423,76391.0,76385.0,0.07295569]
[1731162608837,0.065423,76391.0,76384.0,0.065428]
[1731162608838,0.07295569,76389.0,76384.0,0.065428]
[1731162609030,0.09204,76392.0,76383.0,0.03920166]
[1731162609031,0.07295569,76385.0,76383.0,0.03920166]
[1731162609635,0.06543,76382.0,76381.0,0.0621]
[1731162609836,0.065431,76381.0,76380.0,0.03920166]
[1731162610139,0.065433,76379.0,76377.0,0.03920166]
[1731162610336,0.07295569,76378.0,76377.0,0.03920166]
[1731162610538,0.07475122,76378.0,76377.0,0.03920166]
[1731162611032,0.14018522,76378.0,76377.0,0.03920166]
[1731162611338,0.065435,76377.0,76376.0,0.40000166]
[1731162611538,0.06723053,76377.0,76376.0,0.3608]
[1731162611835,0.065436,76375.0,76373.0,0.03920166]
[1731162612037,0.07295569,76374.0,76373.0,0.03920166]
[1731162612244,0.07295569,76374.0,76372.0,0.03920166]
[1731162612536,0.39369553,76377.0,76372.0,0.03920166]
[1731162612537,0.14018922,76373.0,76372.0,0.03920166]
[1731162612933,0.14018922,76373.0,76370.0,0.03920166]
[1731162613126,0.14018922,76373.0,76371.0,0.03920166]
[1731162613540,0.00179553,76372.0,76371.0,0.03920166]
[1731162614139,0.00179553,76372.0,76370.0,0.03920166]
[1731162614541,0.00179553,76371.0,76370.0,0.03920166]
[1731162615341,0.00179553,76371.0,76370.0,0.03915992]
[1731162615840,0.00179553,76371.0,76369.0,0.11775825]
[1731162616635,0.00179553,76370.0,76369.0,0.11775825]
[1731162618839,0.00179553,76370.0,76369.0,0.096542]
[1731162623440,0.00179553,76370.0,76369.0,0.0311]
[1731162623641,0.06723653,76370.0,76369.0,0.0311]
[1731162624547,0.065443,76368.0,76366.0,0.06536227]
[1731162624847,0.00179553,76370.0,76365.0,0.06536227]
[1731162624848,0.065443,76367.0,76365.0,0.06536227]
[1731162625042,0.07295569,76366.0,76364.0,0.00196416]
[1731162625234,0.07295569,76366.0,76365.0,0.08008391]
[1731162625643,0.07475122,76366.0,76365.0,0.08008391]
[1731162626144,0.07475122,76366.0,76364.0,0.13274957]
[1731162626351,0.07475122,76366.0,76364.0,0.06741016]
[1731162626741,0.00179553,76365.0,76364.0,0.06741016]
[1731162627538,0.00179553,76365.0,76364.0,0.2129879]
[1731162629747,0.00179553,76365.0,76364.0,0.13274957]
[1731162630451,0.00179553,76365.0,76364.0,0.06741016]
[1731162633548,0.00179553,76365.0,76364.0,0.14036585]
[1731162634855,0.00179553,76365.0,76364.0,0.22058488]
[1731162636651,0.07475122,76365.0,76364.0,0.14762919]
[1731162636952,0.00179553,76365.0,76364.0,0.14762919]
[1731162637545,0.00179553,76365.0,76364.0,0.08218319]
[1731162637749,0.06724053,76365.0,76364.0,0.08218319]
[1731162639650,0.14019622,76365.0,76364.0,0.08218319]
[1731162639960,0.14019622,76365.0,76364.0,0.16073427]
[1731162641952,0.07475122,76365.0,76364.0,0.08218319]
[1731162646065,0.00179553,76365.0,76364.0,0.14762919]
[1731162646256,0.00179553,76365.0,76364.0,0.22058488]
[1731162646661,0.00179553,76365.0,76364.0,0.14036585]
[1731162646855,0.00179553,76365.0,76364.0,0.22073937]
[1731162649454,0.00179553,76365.0,76364.0,0.29929045]
[1731162649850,0.00179553,76365.0,76364.0,0.31645513]
[1731162650059,0.00179553,76365.0,76364.0,0.67725513]
[1731162650460,0.00179553,76365.0,76364.0,0.58153937]
[1731162653764,0.00179553,76365.0,76364.0,0.66006854]
[1731162653963,0.00179553,76365.0,76364.0,0.58153937]
[1731162657459,0.00179553,76365.0,76364.0,0.67735454]
[1731162660867,0.00179553,76365.0,76364.0,0.50116585]
[1731162661165,0.0061,76373.0,76372.0,0.065439]
[1731162661362,0.09204,76392.0,76379.0,0.065433]
[1731162661363,0.0061,76380.0,76379.0,0.065433]
[1731162661568,0.07295569,76383.0,76379.0,0.50661066]
[1731162661869,0.07295569,76383.0,76380.0,0.145824]
[1731162662070,0.07295569,76383.0,76380.0,0.06544634]
[1731162662268,0.07295569,76383.0,76381.0,0.05229775]
[1731162663072,0.07295569,76382.0,76381.0,0.05229775]
[1731162663277,0.065431,76381.0,76380.0,0.05229775]
[1731162663570,0.065431,76381.0,76376.0,0.06544634]
[1731162663571,0.065433,76379.0,76378.0,0.05229775]
[1731162663761,0.13838869,76379.0,76377.0,0.03922749]
[1731162663960,0.13838869,76379.0,76364.0,0.14594394]
[1731162663961,0.09780552,76378.0,76374.0,0.03922749]
[1731162664162,0.09780552,76378.0,76371.0,0.05229775]
[1731162664163,0.065439,76372.0,76371.0,0.05229775]
[1731162664363,0.07295569,76374.0,76370.0,0.05229775]
[1731162664561,0.13839569,76371.0,76370.0,0.05229775]
[1731162664963,0.07295569,76371.0,76369.0,0.05229775]
[1731162665161,0.16969669,76370.0,76369.0,0.05229775]
[1731162668769,0.10425569,76370.0,76367.0,0.13088934]
[1731162668975,0.065442,76369.0,76367.0,0.13088934]
[1731162669172,0.065442,76369.0,76368.0,0.14580528]
[1731162669869,0.065442,76369.0,76368.0,0.06544634]
[1731162670266,0.065442,76369.0,76363.0,0.07921478]
[1731162670267,0.43839769,76369.0,76363.0,0.07921478]
[1731162670480,0.43375569,76364.0,76354.0,0.07921478]
[1731162670772,0.43375569,76364.0,76352.0,0.0061]
[1731162670773,0.065455,76353.0,76352.0,0.0061]
[1731162670969,0.065455,76353.0,76342.0,0.063]
[1731162670970,0.3608,76353.0,76350.0,0.05231164]
[1731162671176,0.13841269,76351.0,76350.0,0.05231164]
[1731162671376,0.065458,76350.0,76349.0,0.05231164]
[1731162671571,0.065459,76349.0,76348.0,0.05231164]
[1731162672083,0.14591138,76350.0,76347.0,0.05231164]
[1731162672380,0.06546,76348.0,76344.0,0.05231164]
[1731162672576,0.07295569,76345.0,76344.0,0.05231164]
[1731162673369,0.07295569,76345.0,76343.0,0.11777564]
[1731162673780,0.07295569,76345.0,76344.0,0.05231164]
[1731162673971,0.07295569,76345.0,76343.0,0.065464]
[1731162674279,0.07295569,76345.0,76343.0,0.05231164]
[1731162674773,0.07295569,76345.0,76344.0,0.03915529]
[1731162675176,0.07295569,76345.0,76343.0,0.03915529]
[1731162675481,0.13841769,76345.0,76344.0,0.03915529]
[1731162675871,0.13841769,76345.0,76343.0,0.03915529]
[1731162676085,0.13841769,76345.0,76342.0,0.10215529]
[1731162676876,0.13841769,76345.0,76342.0,0.063]
[1731162677976,0.13841769,76345.0,76342.0,0.10215529]
[1731162678379,0.13841769,76345.0,76342.0,0.063]
[1731162680271,0.0061,76351.0,76349.0,0.065458]
[1731162680569,0.065445,76365.0,76349.0,0.065458]
[1731162680570,0.0061,76357.0,76350.0,0.43375569]
[1731162680775,0.065447,76364.0,76355.0,0.03910956]
[1731162680776,0.07295569,76358.0,76355.0,0.03910956]
[1731162681077,0.07295569,76358.0,76356.0,0.10250956]
[1731162681272,0.07295569,76358.0,76356.0,0.0634]
[1731162682172,0.0061,76362.0,76356.0,0.0634]
[1731162682582,0.07295569,76361.0,76356.0,0.0634]
[1731162683988,0.07295569,76361.0,76356.0,0.10250956]
[1731162684980,0.07295569,76361.0,76357.0,0.03910956]
[1731162686884,0.07295569,76361.0,76358.0,0.03910956]
[1731162687087,0.07295569,76361.0,76359.0,0.03911564]
[1731162688180,0.07295569,76361.0,76356.0,0.128852]
[1731162689385,0.07295569,76361.0,76357.0,0.05231164]
[1731162689889,0.0061,76366.0,76357.0,0.11776364]
[1731162690078,0.07295569,76359.0,76357.0,0.11776364]
[1731162690884,0.07295569,76359.0,76357.0,0.065452]
[1731162691785,0.07295569,76359.0,76358.0,0.039127]
[1731162692493,0.07295569,76359.0,76358.0,0.05231164]
[1731162694482,0.07295569,76359.0,76357.0,0.065452]
[1731162696493,0.3669,76366.0,76356.0,0.0634]
[1731162696494,0.07295569,76363.0,76356.0,0.0634]
[1731162696693,0.07295569,76363.0,76362.0,0.03917209]
[1731162698493,0.07295569,76363.0,76362.0,0.065448]
[1731162698882,0.07295569,76363.0,76362.0,0.11767745]
[1731162699687,0.07295569,76366.0,76362.0,0.065448]
[1731162699882,0.07295569,76366.0,76365.0,0.065445]
[1731162700092,0.3608,76368.0,76365.0,0.11768443]
[1731162700296,0.3608,76368.0,76366.0,0.05223172]
[1731162700482,0.3608,76368.0,76366.0,0.11767572]
[1731162701189,0.3608,76368.0,76367.0,0.19063041]
[1731162701384,0.0061,76374.0,76363.0,0.06528964]
[1731162701589,0.0061,76374.0,76373.0,0.13839369]
[1731162701788,0.00196465,76375.0,76374.0,0.065437]
[1731162701987,0.00196465,76375.0,76374.0,0.128137]
[1731162703094,0.07905569,76381.0,76377.0,0.065434]
[1731162703399,0.13909154,76382.0,76377.0,0.065434]
[1731162703400,0.13909154,76382.0,76381.0,0.065431]
[1731162705195,0.13909154,76382.0,76381.0,0.10457933]
[1731162705585,0.13909154,76382.0,76381.0,0.065431]
[1731162706494,0.13909154,76382.0,76381.0,0.10457933]
[1731162706695,0.13909154,76382.0,76381.0,0.065431]
[1731162710796,0.13909154,76382.0,76381.0,0.03914833]
[1731162710998,0.07295569,76382.0,76380.0,0.03914833]
[1731162711299,0.065436,76376.0,76375.0,0.03914833]
[1731162711492,0.065436,76376.0,76371.0,0.05219778]
[1731162711493,0.065439,76372.0,76371.0,0.05219778]
[1731162711900,0.07295569,76372.0,76370.0,0.05219778]
[1731162712110,0.06544,76371.0,76370.0,0.05219778]
[1731162712402,0.06544,76371.0,76369.0,0.05219778]
[1731162712601,0.07295569,76370.0,76369.0,0.05219778]
[1731162713010,0.13839669,76370.0,76369.0,0.05219778]
[1731162713297,0.14591138,76370.0,76368.0,0.05219778]
[1731162713504,0.3608,76369.0,76365.0,0.05416198]
[1731162713705,0.07295569,76366.0,76365.0,0.05416198]
[1731162714004,0.07295569,76366.0,76365.0,0.0019642]
[1731162718807,0.13839969,76366.0,76365.0,0.0019642]
[1731162719197,0.13839969,76366.0,76365.0,0.04113692]
[1731162720407,0.13839969,76366.0,76365.0,0.0019642]
[1731162721996,0.07295569,76366.0,76365.0,0.0019642]
[1731162722305,0.3608,76368.0,76365.0,0.0674092]
[1731162722601,0.3608,76368.0,76365.0,0.0019642]
[1731162722801,0.3608,76368.0,76367.0,0.13839869]
[1731162724706,0.3608,76368.0,76367.0,0.20368833]
[1731162726609,0.3608,76368.0,76367.0,0.28582094]
[1731162727699,0.3608,76368.0,76367.0,0.09817604]
[1731162728009,0.3608,76368.0,76365.0,0.06725384]
[1731162728215,0.3608,76368.0,76366.0,0.06528964]
[1731162728805,0.065443,76367.0,76366.0,0.06528964]
[1731162729012,0.065443,76367.0,76365.0,0.0019642]
[1731162729013,0.065444,76366.0,76365.0,0.0019642]
[1731162729811,0.065444,76366.0,76365.0,0.05423385]
[1731162730399,0.065444,76366.0,76365.0,0.0019642]
[1731162731303,0.17907743,76366.0,76365.0,0.0019642]
[1731162736015,0.17907743,76366.0,76365.0,0.0411601]
[1731162736516,0.17907743,76366.0,76365.0,0.0019642]
[1731162736712,0.17907743,76366.0,76365.0,0.0411601]
[1731162738413,0.17907743,76366.0,76365.0,0.0019642]
[1731162742115,0.93271743,76366.0,76365.0,0.0019642]
[1731162742412,1.24362583,76366.0,76365.0,0.0019642]
[1731162742614,0.065448,76362.0,76359.0,0.03923031]
[1731162742814,0.06545,76359.0,76358.0,0.03923031]
[1731162743016,0.42625,76359.0,76358.0,0.03923031]
[1731162743216,0.065451,76358.0,76357.0,0.03923031]
[1731162743416,0.17908443,76358.0,76357.0,0.03923031]
[1731162743608,0.57196443,76358.0,76357.0,0.03923031]
[1731162744009,0.57196443,76358.0,76353.0,0.05226965]
[1731162744219,0.57196443,76358.0,76348.0,0.13074864]
[1731162744220,0.11363343,76358.0,76355.0,0.05226965]
[1731162744406,0.17908643,76356.0,76355.0,0.05226965]
[1731162744723,0.065454,76354.0,76353.0,0.05226965]
[1731162745217,0.065456,76352.0,76351.0,0.065457]
[1731162746019,0.065456,76352.0,76346.0,0.032]
[1731162746020,0.065459,76349.0,76348.0,0.06528964]
[1731162746211,0.065459,76349.0,76346.0,0.097461]
[1731162746212,0.06546,76347.0,76346.0,0.097461]
[1731162746411,0.06546,76347.0,76346.0,0.032]
[1731162747215,0.11363343,76350.0,76349.0,0.065459]
[1731162747413,0.11363343,76350.0,76349.0,0.11771987]
[1731162747615,0.17909143,76350.0,76349.0,0.11771987]
[1731162747814,0.17909143,76350.0,76349.0,0.065459]
[1731162748607,0.11363343,76350.0,76347.0,0.05226087]
[1731162748808,0.065459,76349.0,76348.0,0.05226087]
[1731162749926,0.065459,76349.0,76348.0,0.11770194]
[1731162750222,0.3608,76352.0,76348.0,0.06546]
[1731162750430,0.3608,76352.0,76350.0,0.0522402]
[1731162750625,0.3608,76352.0,76348.0,0.06546]
[1731162750626,0.3608,76352.0,76351.0,0.1176972]
[1731162751132,0.3608,76352.0,76351.0,0.065457]
[1731162755623,0.07295947,76355.0,76352.0,0.065456]
[1731162755815,0.065452,76357.0,76354.0,0.03918187]
[1731162756219,0.3608,76359.0,76354.0,0.03918187]
[1731162756220,0.065454,76356.0,76354.0,0.03918187]
[1731162756421,0.065454,76356.0,76355.0,0.03918187]
[1731162756829,0.13841347,76356.0,76355.0,0.03918187]
[1731162758328,0.065454,76355.0,76353.0,0.08294125]
[1731162758523,0.065454,76354.0,76353.0,0.08294125]
[1731162759228,0.065454,76354.0,76353.0,0.0307]
[1731162759620,0.065454,76354.0,76353.0,0.096155]
[1731162759821,0.065454,76354.0,76353.0,0.0307]
[1731162762331,0.065454,76354.0,76353.0,0.096155]
[1731162762832,0.065454,76354.0,76353.0,0.0307]
[1731162766124,0.065454,76354.0,76353.0,0.0830048]
[1731162766537,0.065454,76354.0,76353.0,0.0307]
[1731162771435,0.09890139,76354.0,76353.0,0.0307]
[1731162773440,0.09890139,76354.0,76353.0,0.0307]
[1731162774240,0.09890139,76354.0,76353.0,0.11343232]
[1731162775243,0.09890139,76354.0,76353.0,0.11342852]
[1731162779036,0.45970139,76354.0,76353.0,0.11342852]
[1731162781156,0.45970139,76354.0,76353.0,0.0307]
[1731162782839,0.45970139,76354.0,76353.0,0.096155]
[1731162784341,0.45970139,76354.0,76353.0,0.0307]
[1731162785443,0.45970139,76354.0,76353.0,0.09618823]
[1731162785746,0.45970139,76354.0,76353.0,0.0307]
[1731162785953,0.065455,76353.0,76352.0,0.06548823]
[1731162786248,0.065455,76353.0,76352.0,0.14829097]
[1731162786545,0.13841447,76353.0,76352.0,0.14829097]
[1731162787545,0.065456,76352.0,76351.0,0.06548823]
[1731162787739,0.065456,76352.0,76351.0,0.14826545]
[1731162787740,0.13841547,76352.0,76351.0,0.14826545]
[1731162787939,0.13841547,76352.0,76351.0,0.06548823]
[1731162788352,0.065457,76351.0,76350.0,0.06548823]
[1731162788555,0.065457,76351.0,76350.0,0.14828928]
[1731162789356,0.065457,76351.0,76350.0,0.08280368]
[1731162790256,0.13841647,76351.0,76350.0,0.08280368]
[1731162791556,0.13841647,76351.0,76350.0,0.06547912]
[1731162791854,0.07295947,76351.0,76348.0,0.06547865]
[1731162792052,0.07295947,76353.0,76348.0,0.06547865]
[1731162792053,0.07295947,76349.0,76348.0,0.06547865]
[1731162792253,0.06546,76348.0,76347.0,0.06547865]
[1731162793159,0.07295947,76349.0,76346.0,0.09747865]
[1731162793363,0.42626,76347.0,76346.0,0.09747865]
[1731162793649,0.42626,76347.0,76346.0,0.18033869]
[1731162793857,0.42626,76347.0,76346.0,0.09747865]
[1731162794054,0.42626,76347.0,76346.0,0.18027735]
[1731162794252,0.42626,76347.0,76346.0,0.09747865]
[1731162796253,0.42626,76347.0,76346.0,0.032]
[1731162799864,0.42626,76347.0,76346.0,0.18016473]
[1731162801471,0.42626,76347.0,76346.0,0.09747865]
[1731162802263,0.42626,76347.0,76346.0,0.18014245]
[1731162802464,0.42626,76347.0,76346.0,0.09747865]
[1731162802870,0.06546,76347.0,76346.0,0.18009017]
[1731162803261,0.06546,76347.0,76346.0,0.032]
[1731162811385,0.06546,76347.0,76346.0,0.1799994]
[1731162812391,0.06546,76347.0,76346.0,0.11456488]
[1731162813281,0.06546,76347.0,76346.0,0.032]
[1731162813985,0.06546,76347.0,76346.0,0.11459274]
[1731162816187,0.06546,76347.0,76346.0,0.032]
[1731162821092,0.06546,76347.0,76346.0,0.19310031]
[1731162821997,0.06546,76347.0,76346.0,0.11059699]
[1731162826102,0.06546,76347.0,76346.0,0.11448607]
[1731162828007,0.06546,76347.0,76346.0,0.11450332]
[1731162832309,0.06546,76347.0,76346.0,0.17999792]
[1731162832900,0.09171068,76347.0,76346.0,0.17999792]
[1731162833108,0.09171068,76347.0,76346.0,0.17982654]
[1731162834008,0.09171068,76347.0,76346.0,0.0974946]
[1731162835112,0.09171068,76347.0,76346.0,0.032]
[1731162836102,0.3608,76351.0,76346.0,0.032]
[1731162836303,0.3608,76351.0,76350.0,0.065458]
[1731162836807,0.3608,76351.0,76350.0,0.21307341]
[1731162837209,0.3608,76351.0,76350.0,0.14758924]
[1731162837609,0.3608,76351.0,76350.0,0.08213124]
[1731162838709,0.0061,76358.0,76350.0,0.07295947]
[1731162839018,0.0061,76358.0,76357.0,0.49921147]
[1731162839314,0.07295947,76362.0,76361.0,0.065448]
[1731162845118,0.04041454,76369.0,76361.0,0.07295947]
[1731162845317,0.04041454,76369.0,76362.0,0.096248]
[1731162845515,0.0061,76369.0,76362.0,0.096248]
[1731162845714,0.07295947,76368.0,76362.0,0.096248]
[1731162846018,0.07492467,76363.0,76362.0,0.096248]
[1731162847110,0.07492467,76363.0,76362.0,0.14841465]
[1731162848219,0.07492467,76363.0,76362.0,0.05216665]
[1731162848420,0.07492467,76363.0,76362.0,0.03912821]
[1731162848619,0.14037167,76363.0,76362.0,0.03912821]
[1731162848922,0.07492467,76363.0,76361.0,0.03912821]
[1731162849112,0.065448,76362.0,76361.0,0.03913173]
[1731162849307,0.065449,76360.0,76359.0,0.03913173]
[1731162849512,0.065449,76360.0,76356.0,0.05216665]
[1731162849513,0.43375947,76360.0,76356.0,0.05216665]
[1731162849718,0.065454,76355.0,76354.0,0.03913565]
[1731162849923,0.13841347,76355.0,76354.0,0.03913565]
[1731162850216,0.07295947,76355.0,76352.0,0.03913565]
[1731162850423,0.065456,76352.0,76351.0,0.03913565]
[1731162850619,0.065456,76352.0,76347.0,0.05216665]
[1731162850620,0.065457,76351.0,76347.0,0.11762665]
[1731162851417,0.065457,76351.0,76350.0,0.03914474]
[1731162852415,0.065457,76351.0,76350.0,0.03914996]
[1731162854820,0.065457,76351.0,76350.0,0.0391547]
[1731162855118,0.065457,76351.0,76347.0,0.11762665]
[1731162855318,0.065457,76351.0,76347.0,0.05216665]
[1731162855538,0.065457,76351.0,76348.0,0.097059]
[1731162856329,0.065457,76351.0,76348.0,0.14922565]
[1731162857327,0.065457,76351.0,76349.0,0.03915929]
[1731162857922,0.065457,76351.0,76350.0,0.03915929]
[1731162858822,0.065457,76351.0,76349.0,0.03915929]
[1731162859229,0.065457,76351.0,76350.0,0.03915929]
[1731162864229,0.07295947,76352.0,76348.0,0.065459]
[1731162864431,0.13841547,76352.0,76351.0,0.05223505]
[1731162865428,0.07295947,76352.0,76347.0,0.06546]
[1731162865629,0.13841947,76348.0,76347.0,0.06546]
[1731162867638,0.065461,76347.0,76346.0,0.065461]
[1731162867932,0.07295947,76348.0,76345.0,0.3608]
[1731162868237,0.065461,76346.0,76345.0,0.3608]
[1731162868430,0.065461,76346.0,76345.0,0.426262]
[1731162870337,0.065461,76346.0,76345.0,0.3608]
[1731162871142,0.065461,76346.0,76345.0,0.41305283]
[1731162872243,0.065461,76346.0,76345.0,0.3608]
[1731162872733,0.065461,76346.0,76345.0,0.426262]
[1731162874028,0.065461,76346.0,76345.0,0.3608]
[1731162876843,0.065461,76346.0,76345.0,0.426262]
[1731162878737,0.065461,76346.0,76345.0,0.49157719]
[1731162879239,0.065461,76346.0,76345.0,0.50839687]
[1731162881445,0.065461,76346.0,76345.0,0.426262]
[1731162881839,0.065461,76346.0,76345.0,0.50840561]
[1731162883549,0.065461,76346.0,76345.0,0.14760561]
[1731162884447,0.065461,76346.0,76345.0,0.065462]
[1731162888257,0.1062595,76348.0,76347.0,0.06546]
[1731162888660,0.1717195,76348.0,76347.0,0.06546]
[1731162889156,0.1717195,76348.0,76347.0,0.147417]
[1731162892861,0.0061,76353.0,76347.0,0.081957]
[1731162893061,0.07295947,76352.0,76351.0,0.065456]
[1731162893763,0.065455,76354.0,76351.0,0.065456]
[1731162893967,0.07295947,76352.0,76351.0,0.065456]
[1731162897564,0.065457,76351.0,76350.0,0.06544368]
[1731162899267,0.065457,76351.0,76349.0,0.065459]
[1731162900863,0.065457,76351.0,76350.0,0.065458]
[1731162903973,0.065457,76351.0,76347.0,0.06544368]
[1731162903974,0.06546,76348.0,76347.0,0.06544368]
[1731162904179,0.06546,76348.0,76347.0,0.14727343]
[1731162904473,0.06546,76348.0,76347.0,0.14728975]
[1731162904874,0.07295947,76351.0,76349.0,0.065459]
[1731162905169,0.065458,76351.0,76349.0,0.065459]
[1731162905874,0.06546,76348.0,76343.0,0.06543997]
[1731162906067,0.50671894,76344.0,76342.0,0.05236009]
[1731162906268,0.14591894,76343.0,76340.0,0.05236009]
[1731162906469,0.14591894,76343.0,76332.0,0.065473]
[1731162906470,0.14591894,76341.0,76339.0,0.05236009]
[1731162906773,0.14591894,76341.0,76332.0,0.065473]
[1731162906774,0.19583572,76340.0,76337.0,0.40002409]
[1731162906970,0.065468,76338.0,76337.0,0.40002409]
[1731162907372,0.3608,76370.0,76337.0,0.7108]
[1731162907575,0.03276006,76370.0,76362.0,0.065448]
[1731162907878,0.07295947,76365.0,76362.0,0.065448]
[1731162908281,0.07295947,76365.0,76362.0,0.14592747]
[1731162908480,0.07295947,76369.0,76362.0,0.065448]
[1731162908686,0.07295947,76373.0,76362.0,0.065448]
[1731162908868,0.3608,76379.0,76362.0,0.39288]
[1731162909074,0.3608,76379.0,76375.0,0.065436]
[1731162910978,0.3608,76379.0,76376.0,0.065436]
[1731162911278,0.3608,76379.0,76371.0,0.3608]
[1731162911485,0.14487443,76382.0,76378.0,0.3608]
[1731162911486,0.11357443,76382.0,76378.0,0.3608]
[1731162912589,0.11357443,76382.0,76381.0,0.065431]
[1731162914790,0.14647443,76387.0,76378.0,0.3608]
[1731162914988,0.14647443,76387.0,76382.0,0.06543]
[1731162915184,0.14647443,76387.0,76383.0,0.065429]
[1731162917782,0.14647443,76387.0,76378.0,0.3608]
[1731162918092,0.14647443,76387.0,76385.0,0.065428]
[1731162920680,0.11357443,76386.0,76371.0,0.3608]
[1731162920887,0.11357443,76372.0,76362.0,0.36276437]
[1731162921087,0.11357443,76372.0,76369.0,0.065441]
[1731162921884,0.13910419,76377.0,76369.0,0.065441]
[1731162921885,0.25267862,76377.0,76369.0,0.065441]
[1731162922087,0.25267862,76377.0,76369.0,0.426241]
[1731162922991,0.01474969,76376.0,76369.0,0.3608]
[1731162923186,0.01474969,76375.0,76369.0,0.3608]
[1731162923392,0.01474969,76374.0,76369.0,0.3608]
[1731162923588,0.01474969,76373.0,76369.0,0.3608]
[1731162923787,0.01474969,76372.0,76369.0,0.3608]
[1731162923982,0.01474969,76371.0,76369.0,0.3608]
[1731162924189,0.033,76376.0,76369.0,0.3608]
[1731162924591,0.01477292,76375.0,76369.0,0.3608]